fUSD/lending_fUSD_20240619
["ID","MTS","AMOUNT","RATE_DAILY","PERIOD"]
[329909760,1718824233350,-150.0,0.0001282,2]
[329909761,1718824233359,-150.0,0.00012823,2]
[329909762,1718824233368,-150.0,0.00012825,2]
[329909763,1718824233378,-150.0,0.00012829,2]
[329909764,1718824233387,-150.0,0.00012829,2]
[329909765,1718824233397,-150.0,0.00012832,2]
[329909766,1718824233406,-150.0,0.00012833,2]
[329909767,1718824233415,-150.0,0.00012839,2]
[329909768,1718824233424,-150.0,0.00012848,2]
[329909769,1718824233434,-150.0,0.00012853,2]
[329909770,1718824233443,-150.0,0.00012853,2]
[329909771,1718824233453,-150.0,0.00012854,2]
[329909772,1718824233463,-150.0,0.00012855,2]
[329909773,1718824233472,-150.0,0.00012856,2]
[329909774,1718824233482,-150.0,0.00012858,2]
[329909775,1718824233491,-150.0,0.00012862,2]
[329909776,1718824233500,-150.0,0.00012865,2]
[329909777,1718824233510,-150.0,0.00012865,2]
[329909778,1718824233519,-150.0,0.00012868,2]
[329909779,1718824233529,-150.0,0.0001287,2]
[329909780,1718824233538,-150.0,0.00012875,2]
[329909781,1718824233547,-150.0,0.00012877,2]
[329909782,1718824233555,-150.0,0.00012878,2]
[329909783,1718824233564,-150.0,0.0001288,2]
[329909784,1718824233575,-150.0,0.00012881,2]
[329909785,1718824233584,-150.0,0.00012883,2]
[329909786,1718824233595,-617.0,0.00012885,2]
[329909787,1718824233604,-442.0,0.00012885,2]
[329909788,1718824233613,-165.0,0.00012885,2]
[329909789,1718824233623,-812.0,0.00012885,2]
[329909790,1718824233632,-1653.0,0.00012885,2]
[329909791,1718824233641,-447.0,0.00012885,2]
[329909792,1718824233650,-2410.0,0.00012885,2]
[329909793,1718824233662,-1303.0,0.00012885,2]
[329909794,1718824233671,-3198.0,0.00012885,2]
[329909795,1718824233680,-547.0,0.00012885,2]
[329909796,1718824233690,-1982.0,0.00012885,2]
[329909797,1718824233699,-150.0,0.00012889,2]
[329909798,1718824233709,-150.0,0.00012891,2]
[329909799,1718824233718,-150.0,0.00012892,2]
[329909800,1718824233727,-150.0,0.00012892,2]
[329909801,1718824233737,-5164.0,0.00012895,2]
[329909802,1718824233746,-1196.0,0.00012895,2]
[329909803,1718824233756,-290.0,0.00012895,2]
[329909804,1718824233765,-1067.0,0.00012895,2]
[329909805,1718824233776,-150.0,0.00012897,2]
[329909806,1718824233785,-787.27907737,0.00012898,2]
[329909807,1718824233795,-338.97511584,0.00012898,2]
[329909808,1718824233804,-412.38542459,0.00012898,2]
[329909809,1718824233814,-10000.0,0.00012898,2]
[329909810,1718824233824,-1000.0,0.00012898,2]
[329909811,1718824233834,-33457.7299,0.00012899,2]
[329909812,1718824233843,-150.0,0.00012899,2]
[329909813,1718824233852,-170.134516,0.000129,2]
[329909814,1718824233862,-4212.4007,0.000129,2]
[329909815,1718824233871,-388.0889,0.000129,2]
[329909816,1718824233881,-500.0,0.000129,2]
[329909817,1718824233891,-245000.0,0.000129,2]
[329909818,1718824233900,-5737.37255155,0.000129,2]
[329909819,1718824233912,-172.7162141,0.000129,2]
[329909820,1718824233922,-180.41574376,0.000129,2]
[329909821,1718824233931,-300.0,0.000129,4]
[329909822,1718824233940,-182.15457063,0.000129,2]
[329909823,1718824233950,-150.0,0.00012903,2]
[329909824,1718824233960,-173.84,0.00012904,3]
[329909825,1718824233974,-150.0,0.00012909,2]
[329909826,1718824233983,-150.0,0.00012913,2]
[329909827,1718824233993,-150.0,0.00012917,2]
[329909828,1718824234003,-150.0,0.0001292,2]
[329909829,1718824234013,-150.0,0.00012925,2]
[329909830,1718824234022,-150.0,0.00012928,2]
[329909831,1718824234032,-150.0,0.00012928,2]
[329909832,1718824234045,-150.0,0.00012929,2]
[329909833,1718824234054,-150.0,0.00012932,2]
[329909834,1718824234064,-150.0,0.00012932,2]
[329909835,1718824234074,-150.0,0.00012933,2]
[329909836,1718824234083,-150.0,0.00012933,2]
[329909837,1718824234093,-150.0,0.00012934,2]
[329909838,1718824234103,-150.0,0.00012934,2]
[329909839,1718824234112,-150.0,0.00012936,2]
[329909840,1718824234121,-150.0,0.00012938,2]
[329909841,1718824234130,-150.0,0.00012941,2]
[329909842,1718824234140,-150.0,0.00012944,2]
[329909843,1718824234149,-180.41574371,0.0001295,2]
[329909844,1718824234161,-150.0,0.0001295,2]
[329909845,1718824234170,-150.0,0.00012951,2]
[329909846,1718824234179,-150.0,0.00012953,2]
[329909847,1718824234189,-150.0,0.00012958,2]
[329909848,1718824234199,-150.0,0.00012974,2]
[329909849,1718824234209,-150.0,0.00012979,2]
[329909850,1718824234219,-642.2351639,0.00012989,2]
[329909851,1718824234229,-752.21230935,0.00012989,2]
[329909852,1718824234238,-12416.1019605,0.00012989,2]
[329909853,1718824234248,-1963.900301,0.00012989,2]
[329909854,1718824234259,-150.0,0.00012989,2]
[329909855,1718824234269,-150.0,0.0001299,2]
[329909856,1718824234279,-150.0,0.0001299,2]
[329909857,1718824234288,-5737.37255147,0.00012991,2]
[329909858,1718824234298,-150.0,0.00012991,2]
[329909859,1718824234308,-150.0,0.00012996,2]
[329909860,1718824234318,-155.0,0.00012998,2]
[329909861,1718824234328,-1160.01707378,0.00012998,2]
[329909862,1718824234338,-277.0,0.00012998,2]
[329909863,1718824234347,-145642.80112345,0.00012999,2]
[329909864,1718824234357,-169.52787622,0.00012999,2]
[329909865,1718824234367,-993.477405,0.00012999,2]
[329909866,1718824234376,-579.0,0.00013,2]
[329909867,1718824234386,-407259.23779011,0.00013,2]
[329909870,1718824239198,-24789.43516564,0.00013,2]
[329909872,1718824239735,-277.0,0.00013,2]
[329909874,1718824239747,-866.13556849,0.00013,2]
[329909877,1718824239759,-128317.955629,0.00013,2]
[329909879,1718824239770,-1609.9999999,0.00013,2]
[329909881,1718824239782,-73480.0,0.00013,2]
[329909904,1718824240849,-653.46140955,0.00013,2]
[329909905,1718824240862,-1047.1115,0.00013,2]
[329909906,1718824240873,-264881.49053729,0.00013,2]
[329909907,1718824240885,-66279.73890139,0.00013,2]
[329909908,1718824241041,-844.96821136,0.00013,2]
[329909909,1718824241052,-1284.91157342,0.00013,2]
[329909911,1718824242839,-288.40183904,0.00013,2]
[329909912,1718824242950,-1900.91727116,0.00013,2]
[329909915,1718824243754,-2788688.033897,0.00013,2]
[329909916,1718824243768,-520657.12387708,0.00013,2]
[329909917,1718824243781,-1276.42705946,0.00013,2]
[329909918,1718824243794,-7248.24303825,0.00013,2]
[329909919,1718824244152,-818.85560409,0.00013,2]
[329909921,1718824244167,-311.15608892,0.00013,2]
[329909966,1718824247492,-399.3389568,0.00012999,2]
[329909967,1718824247502,-150.47442229,0.00013,2]
[329909968,1718824247515,-368.52557771,0.00013,2]
[329909969,1718824247525,-3843.87515771,0.00013,2]
[329910004,1718824718124,493.48,9.282e-05,2]
[329910021,1718825269827,468.8,9.471e-05,2]
[329910024,1718825410154,1406.4,0.00012712,14]
[329910053,1718825432284,-328.31347017,0.00011164,2]
[329910055,1718825432294,-319.24404503,0.00011165,2]
[329910057,1718825432303,-529.41988133,0.00011165,2]
[329910059,1718825432312,-624.44673447,0.00011167,2]
[329910061,1718825432321,-171.9,0.0001118,2]
[329910063,1718825432330,-250.0,0.0001136,2]
[329910065,1718825432339,-300.0,0.00011361,2]
[329910067,1718825432349,-21745.71659319,0.00011362,2]
[329910069,1718825432360,-2144.28340681,0.00011362,2]
[329910071,1718825432369,-250.0,0.00011362,2]
[329910073,1718825432380,-800.0,0.00011378,2]
[329910075,1718825432392,-196.13,0.0001139,2]
[329910077,1718825432401,-2114.69,0.0001139,2]
[329910078,1718825432411,-1395.66,0.00011399,2]
[329910079,1718825432419,-155.47474134,0.00011699,2]
[329910080,1718825432432,-468.8,0.00011735,2]
[329910081,1718825432441,-512.71,0.00011871,2]
[329910082,1718825432451,-512.71,0.00011874,2]
[329910083,1718825432461,-512.71,0.00011878,2]
[329910084,1718825432472,-172.6182875,0.00011878,2]
[329910085,1718825432485,-267.3717125,0.00011878,2]
[329910086,1718825432495,-10.95217298,0.00011881,2]
[329910087,1718825432508,-501.75782702,0.00011881,2]
[329910088,1718825432518,-124.58185185,0.00011884,2]
[329910089,1718825432530,-388.12814815,0.00011884,2]
[329910090,1718825432539,-512.71,0.00011887,2]
[329910091,1718825432548,-512.71,0.0001189,2]
[329910092,1718825432559,-512.71,0.00011893,2]
[329910093,1718825432568,-512.71,0.00011896,2]
[329910094,1718825432577,-512.71,0.00011899,2]
[329910095,1718825432588,-512.71,0.00011903,2]
[329910096,1718825432598,-512.71,0.00011906,2]
[329910097,1718825432608,-512.71,0.00011909,2]
[329910098,1718825432617,-512.71,0.00011912,2]
[329910099,1718825432627,-512.71,0.00011915,2]
[329910100,1718825432636,-6911.80309034,0.00011918,2]
[329910101,1718825432648,-13700.56390966,0.00011918,2]
[329910102,1718825432657,-512.71,0.00011918,2]
[329910103,1718825432666,-512.71,0.00011921,2]
[329910104,1718825432675,-512.71,0.00011924,2]
[329910105,1718825432685,-512.71,0.00011928,2]
[329910106,1718825432695,-512.71,0.00011931,2]
[329910107,1718825432704,-200.0,0.00011944,2]
[329910108,1718825432715,-257.55190198,0.00012348,2]
[329910109,1718825432724,-203.89,0.00012395,2]
[329910110,1718825432733,-420.0,0.0001248,2]
[329910111,1718825432743,-1000.0,0.000127,2]
[329910112,1718825432752,-2278.6643,0.000127,2]
[329910113,1718825432762,-326.34874348,0.000127,2]
[329910114,1718825432772,-150.0,0.00012734,2]
[329910115,1718825432781,-150.0,0.00012734,2]
[329910116,1718825432792,-150.0,0.00012735,2]
[329910117,1718825432801,-150.0,0.00012735,2]
[329910118,1718825432810,-150.0,0.00012736,2]
[329910119,1718825432820,-150.0,0.00012739,2]
[329910120,1718825432829,-150.0,0.0001274,2]
[329910121,1718825432839,-150.0,0.00012746,2]
[329910122,1718825432849,-150.0,0.00012747,2]
[329910123,1718825432859,-150.0,0.00012748,2]
[329910124,1718825432868,-150.0,0.0001275,2]
[329910125,1718825432877,-150.0,0.0001275,2]
[329910126,1718825432887,-150.0,0.0001275,2]
[329910127,1718825432896,-150.0,0.00012751,2]
[329910128,1718825432906,-150.0,0.00012767,2]
[329910129,1718825432915,-150.0,0.00012767,2]
[329910130,1718825432925,-150.0,0.00012769,2]
[329910131,1718825432935,-150.0,0.00012775,2]
[329910132,1718825432944,-150.0,0.00012776,2]
[329910133,1718825432954,-150.0,0.00012776,2]
[329910134,1718825432964,-150.0,0.00012778,2]
[329910135,1718825432973,-150.0,0.00012781,2]
[329910136,1718825432982,-150.0,0.00012782,2]
[329910137,1718825432991,-150.0,0.00012784,2]
[329910138,1718825433001,-150.0,0.00012785,2]
[329910139,1718825433010,-150.0,0.00012785,2]
[329910140,1718825433020,-150.0,0.00012786,2]
[329910141,1718825433029,-150.0,0.00012787,2]
[329910142,1718825433039,-150.0,0.00012787,2]
[329910143,1718825433049,-150.0,0.00012788,2]
[329910144,1718825433058,-150.0,0.0001279,2]
[329910145,1718825433067,-150.0,0.00012791,2]
[329910146,1718825433076,-150.0,0.00012792,2]
[329910147,1718825433086,-257.0522684,0.00012798,2]
[329910148,1718825433096,-465.85390514,0.00012798,2]
[329910149,1718825433105,-831.70043938,0.00012798,2]
[329910150,1718825433114,-436.52752881,0.00012798,2]
[329910151,1718825433127,-1006.27155602,0.00012798,2]
[329910152,1718825433136,-1401.49844394,0.00012798,2]
[329910153,1718825433147,-6150.36775768,0.00012798,2]
[329910154,1718825433157,-626.52054052,0.00012798,2]
[329910155,1718825433166,-659.76455465,0.00012798,2]
[329910156,1718825433176,-155.0,0.00012798,2]
[329910157,1718825433185,-241.90249194,0.00012798,2]
[329910158,1718825433195,-158.71989561,0.00012798,2]
[329910159,1718825433204,-364.50139533,0.00012798,2]
[329910160,1718825433215,-1247.36037009,0.00012798,2]
[329910161,1718825433225,-523.13614426,0.00012799,2]
[329910162,1718825433234,-28191.69790583,0.000128,2]
[329910163,1718825433246,-47024.84992548,0.000128,2]
[329910164,1718825433258,-946.77832635,0.000128,2]
[329910165,1718825433269,-1054.71998718,0.000128,2]
[329910167,1718825435854,11175.73010207,0.00025999,90]
[329910168,1718825438012,-544.49802541,0.000128,2]
[329910171,1718825438024,-393.43862223,0.000128,2]
[329910174,1718825438484,-166844.01720752,0.000128,2]
[329910175,1718825438494,-75243.4593,0.000128,2]
[329910176,1718825438504,-500.0,0.000128,2]
[329910177,1718825438514,-150.0,0.000128,2]
[329910178,1718825438524,-800.0,0.000128,2]
[329910179,1718825438534,-150.0,0.00012802,2]
[329910180,1718825438545,-150.0,0.00012803,2]
[329910181,1718825438554,-150.0,0.00012808,2]
[329910182,1718825438564,-150.0,0.0001281,2]
[329910183,1718825438575,-150.0,0.00012811,2]
[329910184,1718825438585,-196.13,0.00012813,2]
[329910185,1718825438596,-150.0,0.00012825,2]
[329910186,1718825438606,-150.0,0.00012827,2]
[329910187,1718825438616,-150.0,0.00012829,2]
[329910188,1718825438626,-150.0,0.00012833,2]
[329910189,1718825438636,-150.0,0.00012834,2]
[329910190,1718825438646,-150.0,0.00012836,2]
[329910191,1718825438655,-150.0,0.00012839,2]
[329910192,1718825438666,-150.0,0.0001284,2]
[329910193,1718825438675,-150.0,0.00012844,2]
[329910194,1718825438685,-150.0,0.00012849,2]
[329910195,1718825438695,-150.0,0.00012849,2]
[329910196,1718825438705,-150.0,0.00012851,2]
[329910197,1718825438716,-150.0,0.00012858,2]
[329910198,1718825438726,-150.0,0.00012862,2]
[329910199,1718825438736,-150.0,0.00012863,2]
[329910200,1718825438747,-150.0,0.00012863,2]
[329910201,1718825438757,-150.0,0.00012864,2]
[329910202,1718825438767,-150.0,0.00012864,2]
[329910203,1718825438777,-150.0,0.00012865,2]
[329910204,1718825438787,-150.0,0.00012867,2]
[329910205,1718825438797,-150.0,0.00012868,2]
[329910206,1718825438807,-150.0,0.0001287,2]
[329910207,1718825438817,-1522.55643,0.0001287,2]
[329910208,1718825438827,-150.0,0.0001288,2]
[329910209,1718825438838,-150.0,0.00012883,2]
[329910210,1718825438849,-150.0,0.00012888,2]
[329910211,1718825438860,-150.0,0.00012888,2]
[329910212,1718825438870,-150.0,0.00012889,2]
[329910213,1718825438880,-150.0,0.0001289,2]
[329910214,1718825438891,-500.0,0.00012895,2]
[329910215,1718825438900,-500.0,0.00012896,2]
[329910216,1718825438911,-150.0,0.00012898,2]
[329910217,1718825438921,-10000.0,0.000129,2]
[329910218,1718825438932,-172.66379191,0.000129,2]
[329910219,1718825438942,-4781.14379291,0.000129,2]
[329910220,1718825438952,-172.7162141,0.000129,2]
[329910221,1718825438963,-154.64206608,0.000129,2]
[329910222,1718825438973,-154.64206603,0.000129,2]
[329910223,1718825438983,-1917.5084449,0.000129,2]
[329910224,1718825438993,-150.0,0.00012907,2]
[329910225,1718825439003,-150.0,0.00012909,2]
[329910226,1718825439014,-150.0,0.00012913,2]
[329910227,1718825439024,-150.0,0.00012929,2]
[329910228,1718825439035,-150.0,0.0001293,2]
[329910229,1718825439046,-150.0,0.0001293,2]
[329910230,1718825439057,-150.0,0.00012933,2]
[329910231,1718825439068,-150.0,0.00012936,2]
[329910232,1718825439079,-150.0,0.00012936,2]
[329910233,1718825439090,-150.0,0.00012942,2]
[329910234,1718825439101,-150.0,0.00012943,2]
[329910235,1718825439112,-150.0,0.0001295,2]
[329910236,1718825439123,-150.0,0.00012951,2]
[329910237,1718825439592,-150.0,0.00012952,2]
[329910238,1718825439621,-150.0,0.00012955,2]
[329910239,1718825439632,-150.0,0.00012957,2]
[329910240,1718825439643,-150.0,0.00012958,2]
[329910241,1718825439653,-150.0,0.0001296,2]
[329910242,1718825439665,-150.0,0.00012962,2]
[329910243,1718825439676,-150.0,0.00012965,2]
[329910244,1718825439687,-150.0,0.00012969,2]
[329910245,1718825439699,-150.0,0.00012977,2]
[329910246,1718825439710,-150.0,0.00012979,2]
[329910247,1718825439722,-150.0,0.00012979,2]
[329910248,1718825439733,-150.0,0.00012979,2]
[329910249,1718825439744,-35408.12,0.0001298,2]
[329910250,1718825439755,-150.0,0.00012982,2]
[329910251,1718825439766,-150.0,0.00012983,2]
[329910252,1718825439777,-150.0,0.00012986,2]
[329910253,1718825439789,-1619.5278732,0.00012989,2]
[329910254,1718825439799,-4952.3779703,0.00012989,2]
[329910255,1718825439808,-2922.2434463,0.00012989,2]
[329910256,1718825439818,-27747.5127754,0.00012989,2]
[329910257,1718825439827,-209.00646061,0.0001299,2]
[329910258,1718825439838,-150.0,0.0001299,2]
[329910259,1718825439848,-4781.14379289,0.00012991,2]
[329910260,1718825439859,-150.0,0.00012992,2]
[329910261,1718825439871,-150.0,0.00012993,2]
[329910262,1718825439881,-150.0,0.00012993,2]
[329910263,1718825439891,-262.81763311,0.00012998,2]
[329910264,1718825439902,-786.8894516,0.00012998,2]
[329910265,1718825439912,-155.0,0.00012998,2]
[329910266,1718825439923,-264.85545954,0.00012998,2]
[329910267,1718825439934,-834.42411592,0.00012998,2]
[329910268,1718825439944,-582.67337236,0.00012999,2]
[329910269,1718825439955,-568.0,0.00013,2]
[329910270,1718825439966,-4004.54048532,0.00013,2]
[329910271,1718825441969,-200.0,0.00011921,2]
[329910272,1718825441980,-1000.0,0.000127,2]
[329910273,1718825441991,-7755.59627251,0.00013,2]
[329910274,1718825442003,-4485.92499844,0.00013,2]
[329910281,1718825442702,-271.7099987,0.00013,2]
[329910282,1718825442714,-9963.09570332,0.00013,2]
[329910296,1718825443593,-450.0,0.00013,2]
[329910298,1718825443606,-905.1488089,0.00013,2]
[329910300,1718825443619,-332.63032864,0.00013,2]
[329910304,1718825443649,-36443.5,0.00013,2]
[329910307,1718825443662,-432.34090547,0.00013,2]
[329910385,1718825446170,-937.88882861,0.00013,2]
[329910389,1718825446183,-4142.58559677,0.00013,2]
[329910390,1718825446662,-2910.55810647,0.00013,2]
[329910391,1718825446674,-890.2,0.00013,2]
[329910392,1718825446687,-1060391.19007347,0.00013,2]
[329910393,1718825446698,-301.55946279,0.00013,2]
[329910394,1718825446710,-734.02466279,0.00013,2]
[329910395,1718825446723,-2356.43045917,0.00013,2]
[329910396,1718825446734,-141193.16582035,0.00013,2]
[329910397,1718825446745,-454.65955225,0.00013,2]
[329910398,1718825446757,-1968.98137058,0.00013,2]
[329910399,1718825446768,-769.1350846,0.00013,2]
[329910400,1718825446779,-1898.23381044,0.00013,2]
[329910401,1718825446791,-8628.74060671,0.00013,2]
[329910402,1718825446802,-2835.79270651,0.00013,2]
[329910403,1718825446814,-289.29978316,0.00013,2]
[329910404,1718825446825,-2986.50532294,0.00013,2]
[329910405,1718825446837,-2918.27556576,0.00013,2]
[329910406,1718825446848,-1661.78932837,0.00013,2]
[329910407,1718825446859,-1356.9970628,0.00013,2]
[329910408,1718825446871,-649.57,0.00013,2]
[329910409,1718825446883,-12580.5765154,0.00013,2]
[329910410,1718825446894,-319.31715993,0.00013,2]
[329910411,1718825446906,-751.14820743,0.00013,2]
[329910968,1718825598866,2555.77753365,9.75e-05,2]
[329910970,1718825831446,328.31347017,0.00010014,2]
[329910971,1718825836251,300.04432676,0.0001,2]
[329910974,1718825846669,519.65860075,0.00010014,2]
[329910975,1718825868184,155.0,0.00010014,2]
[329910976,1718825882370,266.03670419,0.00010014,2]
[329910977,1718825910825,887.33231732,0.00010014,2]
[329910978,1718825987520,15724.78799967,0.00010014,2]
[329910979,1718826052536,1000.0,0.00025999,90]
[329910984,1718826184483,2027.0,0.00025,60]
[329910985,1718826200012,155.0,0.00010014,2]
[329910986,1718826288925,566.0,0.00025,60]
[329910987,1718826339242,3144.92,0.00010014,2]
[329910988,1718826417414,501.49,9.418e-05,2]
[329910992,1718826491219,2753.0624,9.916e-05,2]
[329910999,1718826632226,-818.82444517,0.00011327,2]
[329911000,1718826632238,-757.13168339,0.00011327,2]
[329911001,1718826632249,-15.81387144,0.00011327,2]
[329911003,1718826632259,-250.0,0.00011327,2]
[329911005,1718826632269,-300.0,0.00011345,2]
[329911007,1718826632278,-498.90396807,0.00011346,2]
[329911008,1718826632289,-5069.16032113,0.00011346,2]
[329911009,1718826632327,-7571.13113139,0.00011346,2]
[329911010,1718826632339,-9903.65014736,0.00011346,2]
[329911011,1718826632373,-52.79443205,0.00011346,2]
[329911012,1718826632382,-1000.0,0.00011382,2]
[329911013,1718826632391,-378.67,0.00011422,2]
[329911014,1718826632400,-501.49,0.00011681,2]
[329911015,1718826632409,-4988.81650323,0.000118,2]
[329911016,1718826632419,-159.82,0.00011835,2]
[329911017,1718826632428,-159.82,0.00011844,2]
[329911018,1718826632437,-159.82,0.00011852,2]
[329911019,1718826632447,-159.82,0.00011861,2]
[329911020,1718826632457,-159.82,0.00011869,2]
[329911021,1718826632467,-159.82,0.00011878,2]
[329911022,1718826632478,-159.82,0.00011886,2]
[329911023,1718826632489,-159.82,0.00011895,2]
[329911024,1718826632499,-1000.0,0.00012054,2]
[329911025,1718826632508,-10735.24,0.00012055,2]
[329911026,1718826632518,-958.48201371,0.00012076,2]
[329911027,1718826632527,-282.32,0.00012124,2]
[329911028,1718826632536,-8136.1697,0.000122,2]
[329911029,1718826632545,-1152.3065,0.000122,2]
[329911030,1718826632554,-1000.0,0.000122,2]
[329911031,1718826632564,-527.36,0.00012238,2]
[329911033,1718826632574,-152.56,0.00012238,2]
[329911035,1718826632583,-423.43,0.00012238,2]
[329911037,1718826632593,-300.0,0.00012238,2]
[329911038,1718826632602,-300.0,0.00012238,2]
[329911039,1718826632612,-164.51,0.00012238,2]
[329911040,1718826632621,-354.09,0.00012238,2]
[329911041,1718826632631,-150.0,0.00012238,2]
[329911042,1718826632640,-423.43,0.00012238,2]
[329911043,1718826632649,-150.0,0.00012238,2]
[329911045,1718826632658,-527.36,0.00012238,2]
[329911047,1718826632666,-164.51,0.00012238,2]
[329911048,1718826632674,-150.0,0.00012238,2]
[329911049,1718826632683,-354.09,0.00012238,2]
[329911050,1718826632692,-150.0,0.00012238,2]
[329911051,1718826632701,-150.0,0.00012238,2]
[329911052,1718826632710,-150.0,0.00012238,2]
[329911053,1718826632720,-527.36,0.00012238,2]
[329911054,1718826632730,-150.0,0.00012238,2]
[329911055,1718826632740,-150.0,0.00012238,2]
[329911056,1718826632751,-150.0,0.00012238,2]
[329911057,1718826632766,-150.0,0.00012238,2]
[329911058,1718826632775,-150.0,0.00012238,2]
[329911059,1718826632786,-843.41,0.00012238,2]
[329911060,1718826632796,-150.0,0.00012238,2]
[329911061,1718826632807,-156921.21106856,0.000123,2]
[329911062,1718826632819,-637.98233,0.000123,2]
[329911063,1718826632869,-3219.86003655,0.000123,2]
[329911064,1718826632880,-11548.46871997,0.000123,2]
[329911065,1718826632891,-522.58091288,0.000123,2]
[329911066,1718826632904,-279.69657276,0.000123,2]
[329911067,1718826632915,-1098.8377003,0.000123,2]
[329911068,1718826632994,-399.12662878,0.000123,2]
[329911069,1718826633006,-7767.3397618,0.000123,2]
[329911070,1718826633031,-335.92939992,0.000123,2]
[329911071,1718826633043,-348.89010204,0.000123,2]
[329911072,1718826633055,-291.505,0.000123,2]
[329911080,1718826637832,-6685.07965076,0.000123,2]
[329911081,1718826637848,-1283.46999995,0.000123,2]
[329911082,1718826637860,-2572.7999904,0.000123,2]
[329911083,1718826637927,-17040.41203378,0.000123,2]
[329911096,1718826638294,-43268.70992426,0.000123,2]
[329911098,1718826638304,-420.0,0.00012463,2]
[329911100,1718826638314,-1000.0,0.00012526,2]
[329911102,1718826638324,-166.0893251,0.000126,2]
[329911104,1718826638333,-326.34874346,0.000126,2]
[329911106,1718826638343,-330.9619,0.00012612,2]
[329911108,1718826638353,-1682.2375,0.00012612,2]
[329911110,1718826638363,-412.75360643,0.00012615,2]
[329911111,1718826638372,-113672.0216,0.000127,2]
[329911112,1718826638381,-500.0,0.000127,4]
[329911113,1718826638391,-166.08932508,0.000127,2]
[329911115,1718826638400,-19596.01866887,0.00012712,2]
[329911117,1718826638410,-377.78463481,0.00012712,2]
[329911118,1718826638420,-1100.0,0.000128,4]
[329911120,1718826638429,-166.08932508,0.000128,2]
[329911122,1718826638438,-1000.0,0.00012805,2]
[329911124,1718826638448,-378.67,0.0001285,2]
[329911125,1718826638457,-1268.79702,0.0001287,2]
[329911126,1718826638466,-500.0,0.00012896,2]
[329911127,1718826638477,-1206.9525,0.000129,2]
[329911128,1718826638486,-163.1702,0.000129,2]
[329911129,1718826638495,-93196.73217411,0.000129,2]
[329911130,1718826638514,-3670.27732589,0.000129,2]
[329911131,1718826638523,-1079.59137359,0.000129,2]
[329911132,1718826638535,-5285.64232641,0.000129,2]
[329911133,1718826638545,-1416.216,0.000129,2]
[329911134,1718826638554,-173.88825408,0.000129,2]
[329911135,1718826638564,-6881.95803493,0.000129,2]
[329911136,1718826638573,-1700.0,0.000129,4]
[329911137,1718826638583,-2591.79538458,0.000129,2]
[329911138,1718826638609,-1414.26372981,0.000129,2]
[329911139,1718826638621,-3493.94088561,0.000129,2]
[329911140,1718826638630,-166.08932508,0.000129,2]
[329911141,1718826638639,-1812.38008227,0.000129,2]
[329911142,1718826638648,-155.83786576,0.000129,2]
[329911143,1718826638659,-155.83786571,0.000129,2]
[329911144,1718826638668,-155.83786571,0.00012978,2]
[329911145,1718826638677,-209.00646062,0.00012979,2]
[329911146,1718826638687,-615.1208783,0.00012989,2]
[329911147,1718826638697,-206.8253968,0.00012989,2]
[329911148,1718826638706,-26.32749142,0.00012989,2]
[329911149,1718826638718,-798.65000003,0.00012989,2]
[329911150,1718826638730,-3448.96756255,0.00012989,2]
[329911151,1718826638754,-7336.3021665,0.00012989,2]